bitfinex/quotes_BTCUSD_20220731
["timestamp","ask_amount","ask_price","bid_price","bid_amount"]
[1659295879323,0.00788352,23864.0,23862.0,0.00040124]
[1659295881357,0.00288352,23864.0,23862.0,0.03007441]
[1659295882066,0.00788352,23864.0,23862.0,0.00040124]
[1659295882512,0.01288352,23864.0,23862.0,0.00040124]
[1659295883240,0.00788352,23864.0,23863.0,0.4369305]
[1659295883459,0.00288352,23864.0,23863.0,0.4369305]
[1659295884185,0.00288352,23864.0,23863.0,0.40725733]
[1659295884407,0.00288352,23864.0,23863.0,0.4369305]
[1659295884628,0.00288352,23864.0,23863.0,0.40725733]
[1659295885342,0.00288352,23864.0,23862.0,0.00040124]
[1659295885343,0.12974,23863.0,23862.0,0.00040124]
[1659295885572,1.17294553,23863.0,23862.0,0.00040124]
[1659295885807,1.15962133,23863.0,23862.0,0.00040124]
[1659295886031,1.55770553,23863.0,23862.0,0.00040124]
[1659295886538,1.25408133,23863.0,23862.0,0.00040124]
[1659295886758,1.26672481,23863.0,23862.0,0.00040124]
[1659295886984,1.27461203,23863.0,23862.0,0.00040124]
[1659295887216,0.76600855,23863.0,23862.0,0.00040124]
[1659295887464,0.35875122,23863.0,23862.0,0.00040124]
[1659295887683,0.05788722,23863.0,23862.0,0.00040124]
[1659295887959,0.00788722,23863.0,23862.0,0.00040124]
[1659295888623,0.00288722,23863.0,23862.0,0.03007441]
[1659295888852,0.00288722,23863.0,23862.0,0.00040124]
[1659295889081,0.00788722,23863.0,23862.0,0.00040124]
[1659295889345,0.00736479,23863.0,23862.0,0.00040124]
[1659295889560,0.00736479,23863.0,23862.0,0.03007441]
[1659295889788,0.30822879,23863.0,23861.0,0.00038774]
[1659295890010,0.30822879,23863.0,23859.0,0.00040377]
[1659295890011,0.08641,23863.0,23862.0,0.00374378]
[1659295890242,0.387274,23863.0,23862.0,0.00374378]
[1659295890470,0.81413009,23863.0,23862.0,0.00374378]
[1659295890692,0.86420219,23863.0,23862.0,0.00374378]
[1659295891368,1.88110219,23863.0,23862.0,0.00374378]
[1659295891631,0.97372559,23860.0,23859.0,0.00040377]
[1659295891869,1.155864,23860.0,23859.0,0.00040377]
[1659295892098,1.17546276,23860.0,23859.0,0.00040377]
[1659295893031,0.37546276,23860.0,23859.0,0.00040377]
[1659295893293,0.37546276,23860.0,23854.0,0.00059586]
[1659295893527,0.37546276,23860.0,23854.0,0.40785319]
[1659295893528,0.07459876,23860.0,23854.0,0.40785319]
[1659295893744,0.055,23860.0,23854.0,0.40785319]
[1659295893976,0.005,23860.0,23854.0,0.40785319]
[1659295894219,0.005,23858.0,23854.0,0.43932319]
[1659295894451,0.21456179,23858.0,23855.0,0.01534542]
[1659295894880,0.26456179,23858.0,23855.0,0.01534542]
[1659295895320,0.26456179,23858.0,23855.0,0.31534542]
[1659295896055,0.26456179,23858.0,23856.0,0.40725733]
[1659295896277,0.20953505,23861.0,23857.0,0.35]
[1659295896514,0.20953505,23861.0,23858.0,0.01534538]
[1659295896728,0.005,23859.0,23856.0,0.40725733]
[1659295897229,0.00198725,23857.0,23856.0,0.40725733]
[1659295897446,0.00198725,23857.0,23856.0,0.72233174]
[1659295897664,0.00198725,23857.0,23856.0,0.70725733]
[1659295898779,0.00198725,23857.0,23856.0,0.40725733]
[1659295899223,0.00198725,23857.0,23856.0,0.70725733]
[1659295900345,0.00198725,23857.0,23856.0,0.40725733]
[1659295900818,0.00198725,23857.0,23856.0,0.70725733]
[1659295901271,0.00198725,23857.0,23856.0,0.40725733]
[1659295901741,0.00198725,23857.0,23856.0,0.40777291]
[1659295903428,0.02158601,23857.0,23856.0,0.40725733]
[1659295903644,0.00198725,23857.0,23856.0,0.40725733]
[1659295903875,0.00198725,23857.0,23856.0,0.42233174]
[1659295904110,0.00198725,23857.0,23856.0,0.40725733]
[1659295905943,0.00198725,23857.0,23856.0,0.42233174]
[1659295906162,0.00198725,23857.0,23856.0,0.40725733]
[1659295906604,0.02158601,23857.0,23856.0,0.40725733]
[1659295907095,0.00198725,23857.0,23856.0,0.40725733]
[1659295911382,0.00198725,23857.0,23856.0,0.70725733]
[1659295916380,0.00198725,23857.0,23856.0,0.73872733]
[1659295916605,0.00198725,23857.0,23856.0,0.70725733]
[1659295918211,0.00198725,23857.0,23856.0,0.71996851]
[1659295918657,0.00198725,23857.0,23856.0,0.75143851]
[1659295918863,0.00198725,23857.0,23856.0,0.71996851]
[1659295921593,0.00188726,23857.0,23856.0,0.71996851]
[1659295922773,0.00188726,23857.0,23856.0,0.70725733]
[1659295929043,0.00188726,23857.0,23856.0,1.27785733]
[1659295932715,0.00188726,23857.0,23856.0,1.29057264]
[1659295933267,0.00188726,23857.0,23856.0,0.71997264]
[1659295933489,0.00188726,23857.0,23856.0,0.70497264]
[1659295935843,0.00242786,23858.0,23856.0,0.74997264]
[1659295936064,7.154e-05,23867.0,23857.0,1.32984733]
[1659295936301,7.154e-05,23867.0,23858.0,0.40725733]
[1659295936523,7.154e-05,23867.0,23859.0,0.3]
[1659295936746,7.154e-05,23867.0,23860.0,0.40725733]
[1659295936960,0.3036242,23868.0,23861.0,1.0]
[1659295937180,0.3036242,23868.0,23862.0,0.40725733]
[1659295937399,0.03146,23867.0,23862.0,0.40725733]
[1659295938167,0.03145,23868.0,23862.0,0.40725733]
[1659295938389,0.00455467,23867.0,23862.0,0.45225733]
[1659295938616,0.00455467,23867.0,23863.0,0.40725733]
[1659295938828,0.00455467,23867.0,23864.0,0.30046884]
[1659295939051,0.00455467,23867.0,23865.0,0.40725733]
[1659295939274,0.00455467,23867.0,23866.0,0.05]
[1659295939751,0.00455467,23867.0,23866.0,0.06507441]
[1659295940448,0.00455467,23867.0,23866.0,0.45725733]
[1659295940898,0.00455467,23867.0,23866.0,0.45777037]
[1659295941361,0.00455467,23867.0,23866.0,0.45725733]
[1659295942357,0.00455467,23867.0,23866.0,0.45821573]
[1659295944495,0.00455467,23867.0,23866.0,0.75821573]
[1659295944711,0.00455467,23867.0,23866.0,0.74821573]
[1659295946583,0.00455467,23867.0,23866.0,1.74821573]
[1659295947706,0.05455467,23867.0,23866.0,1.74821573]
[1659295948150,0.00455467,23867.0,23866.0,1.74821573]
[1659295949987,0.00455467,23867.0,23866.0,1.77967573]
[1659295950213,0.00403213,23867.0,23866.0,1.77967573]
[1659295950448,0.00403213,23867.0,23866.0,1.74821573]
[1659295950660,0.00451517,23867.0,23866.0,1.74821573]
[1659295956651,0.00522791,23867.0,23866.0,1.74821573]
[1659295958206,0.25472821,23873.0,23866.0,2.15821573]
[1659295958427,0.05,23872.0,23867.0,1.54496233]
[1659295958650,0.05,23872.0,23868.0,0.45494174]
[1659295958894,0.05,23872.0,23869.0,0.52704474]
[1659295959113,0.05006211,23872.0,23870.0,0.72139133]
[1659295959345,0.05006211,23872.0,23871.0,0.45494174]
[1659295959595,0.05127452,23872.0,23871.0,0.45494174]
[1659295960047,0.05121241,23872.0,23871.0,0.45494174]
[1659295960286,0.05121241,23872.0,23871.0,0.40725733]
[1659295961237,0.05121241,23872.0,23871.0,0.70725733]
[1659295961482,0.05121241,23872.0,23871.0,0.40725733]
[1659295962389,0.05121241,23872.0,23871.0,0.70725733]
[1659295962609,0.05121241,23872.0,23871.0,0.40725733]
[1659295962837,0.05595126,23872.0,23871.0,0.40725733]
[1659295964246,0.05595126,23872.0,23871.0,0.70725733]
[1659295964716,0.05595126,23872.0,23871.0,0.71990081]
[1659295965171,0.05595126,23872.0,23871.0,0.70725733]
[1659295965427,0.05595126,23872.0,23871.0,0.40725733]
[1659295965876,0.05595126,23872.0,23871.0,0.70725733]
[1659295966653,0.05595126,23872.0,23871.0,0.70719407]
[1659295969610,0.05595126,23872.0,23871.0,0.71405168]
[1659295970500,0.08055002,23872.0,23870.0,0.104711]
[1659295970744,0.005,23870.0,23866.0,1.034]
[1659295970994,0.00731559,23870.0,23867.0,0.40725733]
[1659295971218,0.00731559,23870.0,23866.0,1.0]
[1659295971219,0.005,23867.0,23866.0,1.0]
[1659295971452,0.82459876,23867.0,23866.0,1.0]
[1659295971685,1.12546276,23867.0,23866.0,1.0]
[1659295973578,0.82700589,23867.0,23866.0,1.0]
[1659295973795,0.07700589,23867.0,23866.0,1.0]
[1659295974030,0.02700589,23867.0,23866.0,1.0]
[1659295974721,0.10841589,23867.0,23866.0,1.0]
[1659295974946,0.40927989,23867.0,23866.0,1.0]
[1659295977040,0.45260989,23867.0,23866.0,1.0]
[1659295977508,0.00477959,23867.0,23866.0,1.3]
[1659295977740,0.00477959,23867.0,23866.0,1.70725733]
[1659295978428,0.00477959,23867.0,23866.0,1.71133994]
[1659295978650,0.00477959,23867.0,23866.0,1.41133994]
[1659295978877,0.00477959,23867.0,23866.0,1.0]
[1659295979796,0.00477959,23867.0,23866.0,0.999608]
[1659295981920,0.21426647,23867.0,23866.0,0.999608]
[1659295982373,0.26426647,23867.0,23866.0,0.99968069]
[1659295982843,0.26434927,23867.0,23866.0,0.99968069]
[1659295983060,0.26434927,23867.0,23866.0,0.999608]
[1659295984227,0.28394803,23867.0,23866.0,0.999608]
[1659295984446,0.26434927,23867.0,23866.0,1.01468241]
[1659295984664,0.26434927,23867.0,23866.0,0.999608]
[1659295985109,0.28394803,23867.0,23866.0,0.999608]
[1659295985342,0.26434927,23867.0,23866.0,0.999608]
[1659295986016,0.21434927,23867.0,23866.0,1.31468241]
[1659295986265,0.00486239,23867.0,23866.0,1.72193974]
[1659295988134,0.00486239,23867.0,23866.0,1.72595338]
[1659295988829,0.00486239,23867.0,23866.0,1.70686533]
[1659295989017,0.00486239,23867.0,23866.0,1.72595338]
[1659295991952,0.06786239,23867.0,23866.0,1.72995338]
[1659295993308,0.06786239,23867.0,23866.0,1.72595338]
[1659295993309,0.00486239,23867.0,23866.0,1.72595338]
[1659295993958,0.06786239,23867.0,23866.0,1.72995338]
[1659295995310,0.00486239,23867.0,23866.0,1.72595338]
[1659295995975,0.06786239,23867.0,23866.0,1.41086533]
[1659295997081,0.06786239,23867.0,23866.0,1.42607817]
[1659295997319,0.00486239,23867.0,23866.0,1.72207817]
[1659295997549,0.00486239,23867.0,23866.0,1.42207817]
[1659295997778,0.00486239,23867.0,23866.0,1.40686533]
[1659295997990,0.00486239,23867.0,23866.0,1.41786533]
[1659295997991,0.07786239,23867.0,23866.0,1.41786533]
[1659295998221,0.07786239,23867.0,23866.0,1.71786533]
[1659295999314,0.00486239,23867.0,23866.0,1.70686533]
[1659296000035,0.08086239,23867.0,23866.0,1.72586533]
[1659296000289,0.08086239,23867.0,23866.0,1.42586533]
[1659296000720,0.08086239,23867.0,23866.0,1.72586533]
[1659296001388,0.08086239,23867.0,23866.0,1.70686533]
[1659296001389,0.00486239,23867.0,23866.0,1.70686533]
[1659296002081,0.08086239,23867.0,23866.0,1.72586533]
[1659296002553,0.08086239,23867.0,23866.0,1.42586533]
[1659296003216,0.08086239,23867.0,23866.0,1.40686533]
[1659296003217,0.00486239,23867.0,23866.0,1.40686533]
[1659296003427,0.00486239,23867.0,23866.0,1.70686533]
[1659296003731,0.00486239,23867.0,23866.0,1.40686533]
[1659296003962,0.08086239,23867.0,23866.0,1.42586533]
[1659296004405,0.08075391,23867.0,23866.0,1.42586533]
[1659296005286,0.00475391,23867.0,23866.0,1.70686533]
[1659296005910,0.08275391,23867.0,23866.0,1.73986533]
[1659296007177,0.08275391,23867.0,23866.0,1.70686533]
[1659296007387,0.00475391,23867.0,23866.0,1.70686533]
[1659296008061,0.08275391,23867.0,23866.0,1.73986533]
[1659296008992,0.08275391,23867.0,23866.0,1.43986533]
[1659296009224,0.00475391,23867.0,23866.0,1.40686533]
[1659296009667,0.00423169,23867.0,23866.0,1.40686533]
[1659296009882,0.00423169,23867.0,23866.0,1.43986533]
[1659296010101,0.08223169,23867.0,23866.0,1.43986533]
[1659296010318,0.08276236,23867.0,23866.0,1.43986533]
[1659296010535,0.07776236,23867.0,23866.0,1.43986533]
[1659296010767,0.07776236,23867.0,23866.0,1.54459833]
[1659296011213,0.00467009,23867.0,23866.0,1.51159833]
[1659296011435,0.00467009,23867.0,23866.0,1.40686533]
[1659296011918,0.08267009,23867.0,23866.0,1.43986533]
[1659296012574,0.08767009,23867.0,23866.0,1.43986533]
[1659296013212,0.00846239,23867.0,23866.0,1.40686533]
[1659296013669,0.00846239,23867.0,23866.0,1.70686533]
[1659296013882,0.08646239,23867.0,23866.0,1.73986533]
[1659296014794,0.15606115,23867.0,23866.0,1.032608]
[1659296015009,0.51942515,23867.0,23866.0,1.032608]
[1659296015304,0.14056115,23867.0,23866.0,0.999608]
[1659296015746,0.44142515,23867.0,23866.0,0.999608]
[1659296015975,0.52042515,23867.0,23866.0,0.999608]
[1659296017342,0.44142515,23867.0,23866.0,0.999608]
[1659296018090,0.50642515,23867.0,23866.0,0.999608]
[1659296019213,0.44142515,23867.0,23866.0,0.999608]
[1659296019685,0.24532215,23867.0,23866.0,0.999608]
[1659296019923,0.62518615,23867.0,23866.0,0.999608]
[1659296020141,0.52042515,23867.0,23866.0,0.999608]
[1659296020809,0.21956115,23867.0,23866.0,0.999608]
[1659296021041,0.52042515,23867.0,23866.0,0.999608]
[1659296021271,0.52042515,23867.0,23866.0,1.00333948]
[1659296021505,0.08746239,23867.0,23866.0,1.01841389]
[1659296021777,0.08246239,23867.0,23866.0,1.01841389]
[1659296022009,0.08346239,23867.0,23866.0,1.01841389]
[1659296023393,0.00346239,23867.0,23866.0,0.999608]
[1659296023876,0.08246239,23867.0,23866.0,0.999608]
[1659296024767,0.13246239,23867.0,23866.0,0.999608]
[1659296025000,0.13746239,23867.0,23866.0,1.01486898]
[1659296025222,0.05846239,23867.0,23866.0,0.999608]
[1659296025690,0.00846239,23867.0,23866.0,0.999608]
[1659296025920,0.08746239,23867.0,23866.0,0.999608]
[1659296026137,0.34695227,23867.0,23866.0,0.999608]
[1659296027141,0.56881627,23867.0,23866.0,0.999608]
[1659296027352,0.26795227,23867.0,23866.0,0.999608]
[1659296027868,0.34695227,23867.0,23866.0,0.999608]
[1659296028258,0.64781627,23867.0,23866.0,0.999608]
[1659296028458,0.34695227,23867.0,23866.0,0.999608]
[1659296029126,0.26795227,23867.0,23866.0,0.999608]
[1659296029770,0.34695227,23867.0,23866.0,0.999608]
[1659296031126,0.26795227,23867.0,23866.0,0.999608]
[1659296031804,0.34695227,23867.0,23866.0,0.999608]
[1659296033124,0.26795227,23867.0,23866.0,0.999608]
[1659296033778,0.08246239,23867.0,23866.0,1.73832533]
[1659296034000,0.08236884,23867.0,23866.0,1.73832533]
[1659296035196,0.00336884,23867.0,23866.0,1.73832533]
[1659296035867,0.00336884,23867.0,23866.0,1.80332533]
[1659296036757,0.00336884,23867.0,23866.0,1.79332533]
[1659296037202,0.00336884,23867.0,23866.0,1.72832533]
[1659296037849,0.00336884,23867.0,23866.0,1.80432533]
[1659296039242,0.00336884,23867.0,23866.0,1.72832533]
[1659296039483,0.00336884,23867.0,23866.0,1.69686533]
[1659296039941,0.00336884,23867.0,23866.0,1.77286533]
[1659296041104,0.00336884,23867.0,23866.0,1.69686533]
[1659296041968,0.00336884,23867.0,23866.0,1.77286533]
[1659296043135,0.00336884,23867.0,23866.0,1.69686533]
[1659296043786,0.00336884,23867.0,23866.0,1.76386533]
[1659296045083,0.00336884,23867.0,23866.0,1.69686533]
[1659296045300,0.00121241,23872.0,23867.0,0.55106308]
[1659296045517,0.00121241,23872.0,23868.0,0.40725733]
[1659296045723,0.00121241,23872.0,23869.0,0.31794217]
[1659296045943,0.00121241,23872.0,23870.0,0.40725733]
[1659296046193,0.00121241,23872.0,23871.0,0.34768441]
[1659296046385,0.00121241,23872.0,23871.0,0.75494174]
[1659296047797,0.00121241,23872.0,23871.0,0.80294174]
[1659296048243,0.00092862,23872.0,23871.0,0.80294174]
[1659296048463,0.00092862,23872.0,23871.0,0.50294174]
[1659296048732,0.00092862,23872.0,23871.0,0.80294174]
[1659296048959,0.00092862,23872.0,23871.0,0.50294174]
[1659296049191,0.00092862,23872.0,23871.0,0.45494174]
[1659296049402,0.00092862,23872.0,23871.0,0.75494174]
[1659296049836,0.00092862,23872.0,23871.0,0.60764674]
[1659296050310,0.0039851,23872.0,23871.0,0.90764674]
[1659296051224,0.0039851,23872.0,23871.0,0.85964674]
[1659296051905,0.0039851,23872.0,23871.0,0.90764674]
[1659296052826,0.0039851,23872.0,23871.0,0.60764674]
[1659296053049,0.0039851,23872.0,23871.0,0.90764674]
[1659296053489,0.0039851,23872.0,23871.0,0.60764674]
[1659296053718,0.0039851,23872.0,23871.0,0.85964674]
[1659296054012,0.0039851,23872.0,23871.0,0.90764674]
[1659296055140,0.0039851,23872.0,23871.0,0.60764674]
[1659296055360,0.0039851,23872.0,23871.0,0.55964674]
[1659296055801,0.02358386,23872.0,23871.0,0.45525733]
[1659296056030,0.0039851,23872.0,23871.0,0.45525733]
[1659296056260,0.0039851,23872.0,23871.0,0.45515683]
[1659296056753,0.02858386,23872.0,23871.0,0.45515683]
[1659296056978,0.0089851,23872.0,23871.0,0.45515683]
[1659296057201,0.0089851,23872.0,23871.0,0.40715683]
[1659296057419,0.005,23870.0,23869.0,0.40725733]
[1659296057639,0.005,23870.0,23868.0,0.40725733]
[1659296057640,0.005,23869.0,23868.0,0.40725733]
[1659296057915,0.01959876,23870.0,23866.0,0.989608]
[1659296057916,0.005,23868.0,23866.0,0.989608]
[1659296058406,0.05,23867.0,23866.0,1.00581483]
[1659296058627,0.00731559,23868.0,23866.0,0.989608]
[1659296058856,0.005,23867.0,23866.0,0.989608]
[1659296059732,0.005,23867.0,23866.0,1.068608]
[1659296060173,0.02459876,23867.0,23866.0,1.068608]
[1659296060419,0.02459876,23867.0,23866.0,1.08918846]
[1659296060420,0.05601283,23867.0,23866.0,1.08918846]
[1659296060895,0.05601283,23867.0,23866.0,1.0890094]
[1659296061126,0.05601283,23867.0,23866.0,0.98942894]
[1659296061805,0.12501283,23867.0,23866.0,0.99642894]
[1659296062475,0.12001283,23867.0,23866.0,1.01177865]
[1659296063184,0.05101283,23867.0,23866.0,1.00477865]
[1659296063834,0.12301283,23867.0,23866.0,1.01377865]
[1659296065238,0.12301283,23867.0,23866.0,1.00477865]
[1659296065239,0.05601283,23867.0,23866.0,1.00477865]
[1659296065688,0.05601283,23867.0,23866.0,0.98942894]
[1659296065920,0.05601283,23867.0,23866.0,1.08350335]
[1659296066148,0.05601283,23867.0,23866.0,1.06842894]
[1659296067074,0.05601283,23867.0,23866.0,0.98942894]
[1659296067293,0.05601283,23867.0,23866.0,1.28942894]
[1659296067737,0.08601283,23867.0,23866.0,1.69668627]
[1659296067956,0.08101283,23867.0,23866.0,1.74322068]
[1659296068188,0.08101283,23867.0,23866.0,1.71176068]
[1659296068421,0.08101283,23867.0,23866.0,1.72440416]
[1659296068658,0.08101283,23867.0,23866.0,1.75586416]
[1659296068888,0.08049072,23867.0,23866.0,1.80586416]
[1659296069114,0.00049072,23867.0,23866.0,1.80586416]
[1659296069809,0.00049072,23867.0,23866.0,1.86386416]
[1659296070036,0.00101283,23867.0,23866.0,1.86386416]
[1659296070256,0.00101283,23867.0,23866.0,1.86546372]
[1659296070691,0.00101283,23867.0,23866.0,1.81546372]
[1659296070901,0.00101283,23867.0,23866.0,1.78400372]
[1659296071116,0.00101283,23867.0,23866.0,1.71336024]
[1659296071327,0.00101283,23867.0,23866.0,1.79482024]
[1659296071771,0.00101283,23867.0,23866.0,1.78036024]
[1659296073123,0.00101283,23867.0,23866.0,1.71336024]
[1659296073436,0.00101283,23867.0,23866.0,1.76336024]
[1659296073666,0.00101283,23867.0,23866.0,1.79482024]
[1659296073884,0.00101283,23867.0,23866.0,1.85882024]
[1659296074328,0.00101283,23867.0,23866.0,1.82736024]
[1659296075224,0.00101283,23867.0,23866.0,1.76336024]
[1659296075954,0.00101283,23867.0,23866.0,1.82736024]
[1659296076505,0.00101283,23867.0,23866.0,1.77736024]
[1659296076740,0.00101283,23867.0,23866.0,1.82736024]
[1659296076961,0.00101283,23867.0,23866.0,1.77736024]
[1659296077205,0.00101283,23867.0,23866.0,1.75836024]
[1659296077753,0.00101283,23867.0,23866.0,1.41336024]
[1659296077961,0.17575283,23867.0,23866.0,1.46068627]
[1659296079230,0.17575283,23867.0,23866.0,1.39668627]
[1659296079884,0.17575283,23867.0,23866.0,1.47568627]
[1659296080338,0.13242283,23867.0,23866.0,1.47568627]
[1659296080547,0.00101283,23867.0,23866.0,1.47568627]
[1659296081234,0.00101283,23867.0,23866.0,1.39668627]
[1659296081887,0.08001283,23867.0,23866.0,1.39668627]
[1659296082319,0.13001283,23867.0,23866.0,1.39668627]
[1659296083188,0.05101283,23867.0,23866.0,1.39668627]
[1659296083400,0.26047325,23867.0,23866.0,1.39668627]
[1659296084132,0.30247325,23867.0,23866.0,1.39768627]
[1659296085681,0.26047325,23867.0,23866.0,1.39668627]
[1659296086110,0.33647325,23867.0,23866.0,1.41668627]
[1659296087178,0.12701283,23867.0,23866.0,1.41668627]
[1659296087410,0.12701283,23867.0,23866.0,1.71668627]
[1659296087639,0.12701283,23867.0,23866.0,1.41668627]
[1659296087884,0.00101283,23867.0,23866.0,1.74568627]
[1659296088100,0.00101283,23867.0,23866.0,1.44568627]
[1659296088319,0.00101283,23867.0,23866.0,1.74568627]
[1659296088538,0.00101283,23867.0,23866.0,1.44568627]
[1659296089025,0.00101283,23867.0,23866.0,1.74568627]
[1659296089458,0.00094445,23867.0,23866.0,1.74568627]
[1659296089880,0.00238344,23867.0,23866.0,1.69668627]
[1659296090307,0.00238344,23867.0,23866.0,1.74568627]
[1659296091730,0.00238344,23867.0,23866.0,1.69668627]
[1659296091943,0.00238344,23867.0,23866.0,1.74568627]
[1659296093061,0.00238344,23867.0,23866.0,1.44568627]
[1659296093278,0.00238344,23867.0,23866.0,1.69668627]
[1659296093964,0.00238344,23867.0,23866.0,1.74568627]
[1659296095223,0.00238344,23867.0,23866.0,1.69668627]
[1659296095775,0.00238344,23867.0,23866.0,1.39668627]
[1659296095986,0.00238344,23867.0,23866.0,1.44568627]
[1659296096632,0.00238344,23867.0,23866.0,1.74568627]
[1659296097308,0.00238344,23867.0,23866.0,1.39668627]
[1659296097970,0.00238344,23867.0,23866.0,1.44568627]
[1659296099381,0.00238344,23867.0,23866.0,1.39668627]
[1659296100020,0.00238344,23867.0,23866.0,1.44568627]
[1659296101344,0.00238344,23867.0,23866.0,1.39668627]
[1659296102009,0.00238344,23867.0,23866.0,1.44568627]
[1659296102225,0.08379344,23867.0,23866.0,1.44568627]
[1659296103152,0.00238344,23867.0,23866.0,1.44568627]
[1659296103367,0.00238344,23867.0,23866.0,1.39668627]
[1659296104040,0.00238344,23867.0,23866.0,1.44568627]
[1659296104308,0.00238344,23867.0,23866.0,1.03842894]
[1659296104309,0.13212344,23867.0,23866.0,1.03842894]
[1659296104756,0.00738344,23867.0,23866.0,1.03842894]
[1659296105222,0.08879344,23867.0,23866.0,0.98942894]
[1659296105896,0.08879344,23867.0,23866.0,1.06742894]
[1659296106107,0.00738344,23867.0,23866.0,1.06742894]
[1659296106576,0.13212344,23867.0,23866.0,1.06742894]
[1659296107051,0.13212344,23867.0,23864.0,0.00119122]
[1659296107052,0.28205559,23865.0,23864.0,0.00119122]
[1659296107291,0.28205559,23865.0,23862.0,0.00025682]
[1659296107292,0.955,23863.0,23862.0,0.00025682]
[1659296107525,2.304093,23863.0,23862.0,0.00025682]
[1659296107801,2.416593,23863.0,23862.0,0.00025682]
[1659296108060,2.366593,23863.0,23862.0,0.00025682]
[1659296108276,2.366593,23863.0,23854.0,0.00119172]
[1659296108277,0.005,23855.0,23854.0,0.00119172]
[1659296108734,0.005,23855.0,23854.0,0.01626613]
[1659296108961,0.005,23855.0,23854.0,0.00119172]
[1659296109191,0.005,23855.0,23854.0,0.04452172]
[1659296109427,0.30614178,23861.0,23854.0,0.45177905]
[1659296109428,0.005,23861.0,23854.0,0.45177905]
[1659296109654,0.00731559,23861.0,23855.0,0.40725733]
[1659296109875,0.005,23861.0,23855.0,0.43872733]
[1659296110120,0.005,23861.0,23856.0,0.40733419]
[1659296110389,0.005,23861.0,23857.0,0.40725733]
[1659296110861,0.005,23861.0,23858.0,0.01507441]
[1659296111079,0.005,23861.0,23859.0,0.40725733]
[1659296111293,0.05,23863.0,23859.0,0.40725733]
[1659296111738,0.305864,23865.0,23860.0,0.00813898]
[1659296111979,0.079,23863.0,23860.0,0.00813898]
[1659296112207,0.01959876,23862.0,23858.0,0.40725733]
[1659296113333,0.22914135,23862.0,23858.0,0.40725733]
[1659296113570,0.27914135,23862.0,23859.0,0.01507441]
[1659296113791,0.25954259,23862.0,23859.0,0.01507441]
[1659296114014,0.33854259,23862.0,23859.0,0.01507441]
[1659296114265,0.35814135,23862.0,23859.0,0.01507441]
[1659296115163,0.35978458,23862.0,23859.0,0.01507441]
[1659296115373,0.40317959,23861.0,23859.0,0.01507441]
[1659296115631,0.10231559,23861.0,23859.0,0.01507441]
[1659296116063,0.10231559,23861.0,23858.0,0.40725733]
[1659296117845,0.18031559,23861.0,23858.0,0.40725733]
[1659296118759,0.18031559,23861.0,23859.0,0.01694158]
[1659296118981,0.18031559,23861.0,23858.0,0.40725733]
[1659296119203,0.005,23860.0,23858.0,0.40725733]
[1659296119440,0.05,23859.0,23858.0,0.40725733]
[1659296119695,0.00731559,23860.0,23858.0,0.42487609]
[1659296119928,0.08631559,23860.0,23858.0,0.42487609]
[1659296120387,0.134,23860.0,23858.0,0.42487609]
[1659296121283,0.005,23860.0,23858.0,0.42487609]
[1659296121977,0.084,23860.0,23858.0,0.42487609]
[1659296122234,0.134,23860.0,23858.0,0.42487609]
[1659296122457,0.129,23860.0,23858.0,0.42487609]
[1659296123840,0.00168707,23861.0,23858.0,0.42487609]
[1659296124061,0.0008439,23859.0,23858.0,0.42487609]
[1659296124503,0.02044266,23859.0,23858.0,0.40725733]
[1659296124771,0.0008439,23859.0,23858.0,0.42600675]
[1659296125903,0.0438439,23859.0,23858.0,0.42600675]
[1659296127899,0.0788439,23859.0,23858.0,0.42600675]
[1659296129238,0.0008439,23859.0,23858.0,0.42600675]
[1659296129951,0.0788439,23859.0,23858.0,0.42600675]
[1659296130192,0.07772639,23859.0,23858.0,0.42600675]
[1659296130406,0.07772639,23859.0,23858.0,0.42586719]
[1659296130625,0.07854809,23859.0,23858.0,0.42586719]
[1659296131335,0.0008217,23859.0,23858.0,0.42586719]
[1659296131989,0.1288217,23859.0,23858.0,0.42586719]
[1659296133354,0.0008217,23859.0,23858.0,0.42586719]
[1659296134058,0.0788217,23859.0,23858.0,0.42580426]
[1659296134267,0.1288217,23859.0,23858.0,0.42580426]
[1659296135183,0.0508217,23859.0,23858.0,0.42580426]
[1659296135640,0.0008217,23859.0,23858.0,0.42580426]
[1659296135866,0.0788217,23859.0,23858.0,0.42580426]
[1659296136097,0.1288217,23859.0,23858.0,0.42580426]
[1659296137201,0.0508217,23859.0,23858.0,0.42580426]
[1659296137428,0.00211873,23859.0,23858.0,0.40890064]
[1659296137648,0.00211873,23859.0,23858.0,0.42397505]
[1659296137966,0.15080799,23859.0,23858.0,0.42397505]
[1659296138407,0.20080799,23859.0,23858.0,0.42397505]
[1659296139270,0.12280799,23859.0,23858.0,0.42397505]
[1659296139931,0.20080799,23859.0,23858.0,0.42397505]
[1659296141781,0.12280799,23859.0,23858.0,0.42397505]
[1659296141996,0.20080799,23859.0,23858.0,0.42397505]
[1659296143297,0.12280799,23859.0,23858.0,0.42397505]
[1659296143521,0.12280799,23859.0,23858.0,0.01692021]
[1659296143739,0.12280799,23859.0,23856.0,6.412e-05]
[1659296143959,0.20080799,23859.0,23857.0,0.40725733]
[1659296144439,0.13011873,23859.0,23857.0,0.40725733]
[1659296144664,0.28024251,23858.0,23856.0,0.40732152]
[1659296145861,0.32624251,23858.0,23857.0,0.01892836]
[1659296146070,0.32624251,23858.0,23856.0,0.40725733]
[1659296146291,0.32624251,23858.0,23856.0,0.40977004]
[1659296146508,0.11668926,23858.0,23856.0,0.69879741]
[1659296146729,0.11668926,23858.0,23857.0,0.70725733]
[1659296147167,0.07068926,23858.0,23857.0,0.72233174]
[1659296147850,0.12068926,23858.0,23857.0,0.72233174]
[1659296148085,0.15768926,23858.0,23857.0,0.72233174]
[1659296148310,0.15768926,23858.0,23857.0,0.42233174]
[1659296148557,0.15768926,23858.0,23857.0,0.72233174]
[1659296149216,0.12068926,23858.0,23857.0,0.72233174]
[1659296149684,0.12177119,23858.0,23857.0,0.72233174]
[1659296149898,0.15877119,23858.0,23857.0,0.72233174]
[1659296150567,0.15877119,23858.0,23857.0,0.42233174]
[1659296151018,0.10877119,23858.0,23857.0,0.72233174]
[1659296151466,0.07177119,23858.0,23857.0,0.72233174]
[1659296152115,0.09077119,23858.0,23857.0,0.49733174]
[1659296152348,0.14077119,23858.0,23857.0,0.49733174]
[1659296153477,0.12177119,23858.0,23857.0,0.72233174]
[1659296153929,0.17577119,23858.0,23857.0,0.40725733]
[1659296154148,0.17577119,23858.0,23857.0,0.42233174]
[1659296154571,0.17577119,23858.0,23857.0,0.42516547]
[1659296154752,0.17569651,23858.0,23857.0,0.72516547]
[1659296155126,0.12169651,23858.0,23857.0,0.72516547]
[1659296155743,0.12169651,23858.0,23857.0,0.42516547]
[1659296155968,0.12169651,23858.0,23857.0,0.72516547]
[1659296155969,0.17569651,23858.0,23857.0,0.72516547]
[1659296157330,0.12169651,23858.0,23857.0,0.72516547]
[1659296157971,0.17569651,23858.0,23857.0,0.72516547]